bitfinex/quotes_SOLUSD_20251208
["timestamp","ask_amount","ask_price","bid_price","bid_amount"]
[1765208866157,0.72,135.67,135.63,4.62812689]
[1765208866331,0.72,135.67,135.62,4.62812689]
[1765208866533,5.34812689,135.67,135.62,4.62812689]
[1765208866750,0.72,135.67,135.63,4.62812689]
[1765208866954,0.72,135.67,135.63,12.00064778]
[1765208867135,13.42812689,135.69,135.64,5.31812689]
[1765208867349,5.34812689,135.71,135.66,4.62812689]
[1765208867742,9.52994492,135.7,135.66,5.31812689]
[1765208868745,9.52994492,135.7,135.65,8.08]
[1765208868746,16.16798397,135.73,135.67,5.31812689]
[1765208868953,9.52994492,135.72,135.68,7.37028301]
[1765208869458,8.80994492,135.7,135.67,7.37063816]
[1765208869638,13.43807181,135.68,135.63,23.05939808]
[1765208869956,8.80994492,135.68,135.65,7.3717864]
[1765208870153,8.80994492,135.66,135.63,7.37250804]
[1765208870560,9.52994492,135.66,135.63,7.37250804]
[1765208871340,8.80994492,135.66,135.63,7.37250804]
[1765208871552,9.52994492,135.66,135.63,7.37250804]
[1765208872270,8.80994492,135.66,135.63,7.37250804]
[1765208873170,8.80994492,135.67,135.63,7.37250804]
[1765208873376,0.72,135.66,135.63,7.37250804]
[1765208873940,8.80994492,135.67,135.63,12.67063493]
[1765208874673,0.72,135.67,135.63,7.37250804]
[1765208874864,13.43807181,135.68,135.63,26.47500822]
[1765208875056,14.15807181,135.68,135.63,26.47500822]
[1765208875258,0.72,135.67,135.63,26.47500822]
[1765208875647,8.80994492,135.68,135.63,31.10313511]
[1765208875851,14.15807181,135.68,135.63,26.47500822]
[1765208876061,9.52994492,135.68,135.64,0.67]
[1765208876669,9.52994492,135.68,135.63,25.80500822]
[1765208876969,9.52994492,135.68,135.63,26.47500822]
[1765208877763,8.80994492,135.68,135.64,0.67]
[1765208877958,29.73699089,135.7,135.64,5.29812689]
[1765208878174,8.08,135.7,135.65,4.62812689]
[1765208878362,8.08,135.7,135.66,4.62812689]
[1765208878563,8.08,135.7,135.66,5.29812689]
[1765208878764,8.08,135.7,135.67,0.67]
[1765208878959,8.08,135.7,135.65,4.62812689]
[1765208879161,8.8,135.7,135.66,0.67]
[1765208879480,8.8,135.7,135.65,12.70812689]
[1765208879683,8.8,135.7,135.65,13.41812689]
[1765208879852,8.8,135.7,135.66,7.3713696]
[1765208880291,8.8,135.7,135.66,8.0813696]
[1765208880554,8.80994492,135.73,135.69,4.62812689]
[1765208880777,0.2,135.74,135.72,4.62812689]
[1765208881074,0.2,135.74,135.73,4.62812689]
[1765208881273,0.2,135.74,135.73,0.71]
[1765208881875,0.2,135.74,135.71,4.62812689]
[1765208882052,0.2,135.74,135.72,7.36811081]
[1765208882456,0.86,135.74,135.7,8.08]
[1765208882668,0.86,135.74,135.69,23.76186362]
[1765208882870,0.86,135.74,135.69,23.05186362]
[1765208883083,0.86,135.74,135.71,7.36840288]
[1765208883284,0.2,135.74,135.71,7.36840288]
[1765208883581,0.2,135.74,135.71,25.79003724]
[1765208883879,0.2,135.74,135.71,26.50003724]
[1765208884080,0.2,135.74,135.71,31.12816413]
[1765208884283,0.2,135.74,135.73,4.62812689]
[1765208884488,0.2,135.74,135.72,5.33812689]
[1765208884691,0.2,135.74,135.71,38.47816413]
[1765208884904,0.86,135.74,135.71,7.36840288]
[1765208885502,9.00994492,135.74,135.71,7.36840288]
[1765208885672,9.66994492,135.74,135.71,7.36840288]
[1765208885988,9.66994492,135.74,135.7,7.36919675]
[1765208886174,17.03703364,135.74,135.7,7.36919675]
[1765208886375,0.66,135.73,135.69,7.3695777]
[1765208886577,4.62812689,135.71,135.68,7.37015012]
[1765208886795,8.72,135.73,135.67,4.62812689]
[1765208886962,16.308864,135.71,135.67,19.13626334]
[1765208887158,16.308864,135.71,135.68,7.37006823]
[1765208887159,20.93699089,135.71,135.68,7.37006823]
[1765208887379,20.93699089,135.71,135.67,7.37046943]
[1765208887380,14.09807181,135.7,135.67,7.37046943]
[1765208887582,16.86994492,135.7,135.65,23.05759715]
[1765208887823,17.52994492,135.7,135.65,19.13947026]
[1765208888165,8.06,135.7,135.66,31.13792049]
[1765208888384,9.00994492,135.74,135.69,4.62812689]
[1765208888584,9.00994492,135.74,135.66,42.8186576]
[1765208888585,13.43807181,135.71,135.66,25.7997936]
[1765208888773,4.62812689,135.72,135.66,25.7997936]
[1765208888980,8.80994492,135.72,135.66,31.13792049]
[1765208889195,13.43807181,135.72,135.67,0.71]
[1765208889383,5.28812689,135.73,135.67,5.33812689]
[1765208890077,5.28812689,135.73,135.68,7.37028301]
[1765208890592,17.52994492,135.72,135.67,7.37070909]
[1765208890775,22.15807181,135.72,135.67,7.37070909]
[1765208890981,22.15807181,135.72,135.68,0.71]
[1765208891193,17.52994492,135.72,135.68,0.71]
[1765208891492,8.06,135.72,135.68,0.71]
[1765208891701,8.72,135.72,135.68,0.71]
[1765208892284,8.72,135.72,135.69,7.36973984]
[1765208893100,17.52994492,135.72,135.69,7.36973984]
[1765208893308,0.66,135.71,135.66,8.77]
[1765208893481,13.43807181,135.7,135.66,7.37119027]
[1765208893993,8.72,135.72,135.68,7.3701208]
[1765208894201,8.06,135.72,135.68,7.3701208]
[1765208894375,8.06,135.72,135.69,0.71]
[1765208894677,8.06,135.72,135.68,26.50582834]
[1765208895000,8.06,135.72,135.69,0.71]
[1765208895349,8.06,135.72,135.68,7.3701208]
[1765208895521,8.80994492,135.73,135.68,12.70824769]
[1765208895815,9.46994492,135.73,135.68,12.70824769]
[1765208896676,8.26,135.74,135.71,4.62812689]
[1765208897095,8.26,135.74,135.71,5.33812689]
[1765208897781,8.26,135.74,135.72,5.33812689]
[1765208897989,0.2,135.74,135.73,4.62812689]
[1765208898184,0.2,135.74,135.73,5.33812689]
[1765208898388,0.2,135.74,135.73,0.71]
[1765208898592,0.2,135.74,135.71,4.62812689]
[1765208898906,0.2,135.74,135.72,12.7062377]
[1765208899121,0.2,135.74,135.73,4.62812689]
[1765208899323,0.2,135.74,135.73,0.71]
[1765208899624,0.2,135.74,135.71,18.42035285]
[1765208899625,0.86,135.74,135.71,7.36850801]
[1765208900111,8.72,135.73,135.7,7.36903862]
[1765208900315,4.62812689,135.71,135.65,8.77]
[1765208900485,4.62812689,135.71,135.68,7.36993362]
[1765208900690,9.46994492,135.71,135.67,7.37082626]
[1765208901614,4.62812689,135.72,135.67,25.79789193]
[1765208901790,9.47994492,135.72,135.67,31.09601882]
[1765208902855,8.06,135.73,135.68,0.67]
[1765208903116,8.06,135.73,135.69,4.62812689]
[1765208903310,0.2,135.74,135.72,4.62812689]
[1765208903510,0.2,135.74,135.73,4.62812689]
[1765208903714,0.2,135.74,135.71,24.368864]
[1765208903911,0.2,135.74,135.73,4.62812689]
[1765208904294,0.2,135.74,135.71,20.93699089]
[1765208904499,0.2,135.74,135.72,5.29812689]
[1765208904699,0.2,135.74,135.73,5.29812689]
[1765208904901,0.2,135.74,135.73,12.66569485]
[1765208905230,8.93,135.79,135.73,31.08461476]
[1765208905231,8.26,135.79,135.73,31.08461476]
[1765208905396,13.55812689,135.79,135.73,31.08461476]
[1765208905594,8.93,135.79,135.74,4.62812689]
[1765208906003,8.93,135.79,135.74,5.29812689]
[1765208906200,0.87,135.79,135.74,4.62812689]
[1765208906429,0.87,135.79,135.75,0.67]
[1765208906826,0.67,135.78,135.73,30.41461476]
[1765208907010,0.67,135.78,135.73,31.08461476]
[1765208907408,9.47994492,135.78,135.73,31.08461476]
[1765208908022,0.67,135.77,135.73,25.78648787]
[1765208908238,13.43807181,135.76,135.71,7.36822378]
[1765208908546,8.80994492,135.74,135.7,7.3690224]
[1765208908847,20.80542314,135.74,135.69,7.36956281]
[1765208909012,0.67,135.73,135.69,7.36956281]
[1765208909214,5.29812689,135.73,135.69,7.36956281]
[1765208909616,0.67,135.72,135.69,7.36956281]
[1765208909822,4.62812689,135.7,135.65,18.42936752]
[1765208910023,4.62812689,135.7,135.66,7.37121209]
[1765208910354,0.67,135.69,135.66,7.37121209]
[1765208910519,13.43807181,135.68,135.64,7.37243187]
[1765208910836,20.80840452,135.68,135.62,25.80668423]
[1765208911033,14.10807181,135.68,135.62,30.43481112]
[1765208911214,0.67,135.67,135.62,30.43481112]
[1765208911534,5.29812689,135.67,135.62,25.80668423]
[1765208911730,5.29812689,135.67,135.62,26.47668423]
[1765208911912,5.29812689,135.66,135.62,25.80668423]
[1765208912108,0.67,135.66,135.62,25.80668423]
[1765208912327,0.67,135.66,135.62,26.47668423]
[1765208912534,0.67,135.66,135.62,30.43481112]
[1765208912707,0.67,135.66,135.62,26.47668423]
[1765208912912,0.67,135.66,135.62,7.37354372]
[1765208913125,5.29812689,135.66,135.62,7.37354372]
[1765208914236,5.29812689,135.66,135.61,25.80860932]
[1765208914633,0.67,135.66,135.61,31.10673621]
[1765208914943,7.83182776,135.66,135.61,26.47860932]
[1765208915135,0.67,135.66,135.61,32.97043708]
[1765208915337,0.67,135.65,135.61,25.80860932]
[1765208915546,7.16182776,135.64,135.61,7.37408745]
[1765208915919,0.67,135.63,135.61,7.37408745]
[1765208916231,0.67,135.63,135.59,25.81239512]
[1765208916440,0.67,135.63,135.59,26.48239512]
[1765208916739,15.4320234,135.65,135.6,7.83182776]
[1765208916740,8.06,135.65,135.6,7.83182776]
[1765208917235,8.06,135.65,135.61,0.67]
[1765208917815,8.06,135.65,135.62,7.37354372]
[1765208918016,8.73,135.65,135.62,7.37354372]
[1765208918446,8.06,135.65,135.62,25.80740303]
[1765208919923,7.16182776,135.69,135.63,7.83182776]
[1765208920138,8.80994492,135.68,135.63,7.83182776]
[1765208920529,9.47994492,135.68,135.63,7.83182776]
[1765208920837,8.06,135.69,135.64,7.83182776]
[1765208921047,7.83182776,135.73,135.67,7.16182776]
[1765208921220,7.16182776,135.7,135.64,16.308864]
[1765208921419,7.16182776,135.68,135.62,34.53740303]
[1765208921648,15.97177268,135.67,135.62,26.47740303]
[1765208922142,0.67,135.66,135.62,26.47740303]
[1765208922657,15.97177268,135.68,135.62,32.96923079]
[1765208922837,8.73,135.69,135.64,7.16182776]
[1765208923141,9.47994492,135.7,135.65,7.16182776]
[1765208923347,9.47994492,135.7,135.65,7.83182776]
[1765208923730,23.47069176,135.71,135.65,7.16182776]
[1765208923929,16.978864,135.71,135.67,7.37082626]
[1765208924342,0.67,135.7,135.67,7.37082626]
[1765208925047,9.47994492,135.73,135.68,7.83182776]
[1765208925965,9.47994492,135.73,135.69,7.36973984]
[1765208926119,0.67,135.72,135.69,7.36973984]
[1765208926326,7.83182776,135.72,135.68,7.3700733]
[1765208926618,0.67,135.72,135.68,25.79578084]
[1765208926952,0.67,135.71,135.68,32.9576086]
[1765208927249,7.83182776,135.71,135.68,7.3700733]
[1765208927542,0.67,135.71,135.68,7.3700733]
[1765208928045,0.67,135.71,135.67,7.37082626]
[1765208928551,0.67,135.71,135.67,33.62971969]
[1765208928725,8.80994492,135.72,135.68,0.67]
[1765208929053,9.47994492,135.72,135.67,33.62971969]
[1765208929757,0.67,135.71,135.67,32.95971969]
[1765208929925,0.67,135.71,135.67,25.79789193]
[1765208930341,7.83182776,135.71,135.67,25.79789193]
[1765208930546,24.03177268,135.7,135.67,7.37082626]
[1765208930726,24.70177268,135.7,135.67,7.37082626]
[1765208930928,16.86994492,135.7,135.67,7.37082626]
[1765208931139,0.67,135.69,135.67,7.37082626]
[1765208931754,25.11880892,135.73,135.68,7.85182776]
[1765208931931,25.11880892,135.73,135.69,7.16182776]
[1765208932122,7.88182776,135.72,135.66,41.02162136]
[1765208932326,8.06,135.71,135.66,32.96162136]
[1765208932623,8.06,135.71,135.66,33.65162136]
[1765208932824,9.52994492,135.7,135.66,26.4897936]
[1765208933035,16.69177268,135.7,135.66,7.3713696]
[1765208933241,0.72,135.69,135.66,7.3713696]
[1765208933636,16.86994492,135.68,135.65,7.37191301]
[1765208934025,17.58994492,135.68,135.65,7.37191301]
[1765208934726,8.06,135.68,135.65,26.49169553]
[1765208934925,8.06,135.68,135.65,33.65352329]
[1765208935158,8.06,135.68,135.65,25.80169553]
[1765208935338,7.16182776,135.66,135.64,7.37245251]
[1765208935533,0.72,135.67,135.63,32.96674968]
[1765208935850,8.06,135.68,135.63,32.96674968]
[1765208936064,8.06,135.68,135.64,7.16182776]
[1765208936358,0.72,135.67,135.63,26.49492192]
[1765208936654,9.52994492,135.67,135.63,25.80492192]
[1765208937554,8.06,135.67,135.64,7.85182776]
[1765208937752,8.80994492,135.69,135.65,7.37191301]
[1765208937952,17.58994492,135.69,135.65,7.37191301]
[1765208938160,8.06,135.69,135.66,0.69]
[1765208938524,15.97177268,135.7,135.66,0.69]
[1765208938745,7.88182776,135.69,135.65,7.37191301]
[1765208939063,7.16182776,135.68,135.65,7.37191301]
[1765208939236,7.88182776,135.68,135.65,7.37191301]
[1765208939563,24.23925539,135.7,135.65,7.37191301]
[1765208939730,16.86994492,135.71,135.67,7.37082626]
[1765208939933,24.71177268,135.71,135.67,7.37082626]
[1765208940152,24.71177268,135.71,135.67,8.08082626]
[1765208940457,8.06,135.71,135.68,0.71]
[1765208940662,0.68,135.7,135.67,25.79789193]
[1765208940849,0.68,135.7,135.67,7.37082626]
[1765208941343,8.06,135.71,135.67,33.66971969]
[1765208941655,8.74,135.71,135.67,33.66971969]
[1765208941857,16.308864,135.74,135.67,33.66971969]
[1765208941858,8.80994492,135.73,135.68,7.87182776]
[1765208942162,16.86994492,135.73,135.68,7.87182776]
[1765208942453,7.84182776,135.72,135.67,25.79789193]
[1765208942638,15.97177268,135.7,135.67,7.37082626]
[1765208942852,24.03177268,135.7,135.67,7.37082626]
[1765208943040,24.71177268,135.7,135.67,7.37082626]
[1765208943236,8.06,135.7,135.68,0.71]
[1765208943433,15.90182776,135.72,135.68,0.71]
[1765208943636,24.3560061,135.74,135.68,7.87182776]
[1765208943853,24.71177268,135.73,135.69,7.36973984]
[1765208944035,15.90182776,135.73,135.69,25.79408946]
[1765208944236,15.90182776,135.73,135.69,26.50408946]
[1765208944644,7.84182776,135.72,135.69,7.36973984]
[1765208944858,7.84182776,135.72,135.68,7.37004044]
[1765208945158,8.06,135.73,135.69,0.71]
[1765208945540,8.06,135.73,135.68,7.37022413]
[1765208945541,7.16182776,135.7,135.68,7.37022413]
[1765208945752,7.16182776,135.7,135.66,18.4274941]
[1765208946053,15.90182776,135.73,135.67,7.16182776]
[1765208946253,7.16182776,135.71,135.66,25.7988637]
[1765208946459,8.80994492,135.71,135.66,25.7988637]
[1765208946758,7.84182776,135.74,135.69,23.47069176]
[1765208947056,16.65177268,135.73,135.68,7.16182776]
[1765208947255,15.22182776,135.72,135.67,24.18069176]
[1765208947455,0.68,135.71,135.67,24.18069176]
[1765208947771,0.68,135.71,135.68,7.37028301]
[1765208948134,8.06,135.74,135.7,7.16182776]
[1765208948446,8.06,135.74,135.69,7.87182776]
[1765208948637,0.68,135.73,135.69,0.71]
[1765208949254,0.68,135.73,135.69,17.018864]
[1765208949470,0.68,135.73,135.68,7.37024078]
[1765208949471,15.97177268,135.72,135.68,7.37024078]
[1765208949934,0.68,135.71,135.67,8.08070919]
[1765208950142,15.90182776,135.71,135.67,7.37070919]
[1765208950360,15.22182776,135.71,135.67,7.37070919]
[1765208950550,0.68,135.7,135.67,7.37070919]
[1765208950845,0.68,135.7,135.66,23.68002362]
[1765208951032,15.22182776,135.71,135.67,7.3707822]
[1765208951232,0.68,135.7,135.67,7.3707822]
[1765208951633,8.80994492,135.69,135.64,34.36232674]
[1765208951872,15.97177268,135.69,135.65,7.37152428]
[1765208952048,16.65177268,135.69,135.65,7.37152428]
[1765208952457,16.65177268,135.69,135.66,7.3713128]
[1765208952847,16.65177268,135.69,135.65,8.08170192]
[1765208953251,24.0217123,135.69,135.65,8.08170192]
[1765208953452,7.84182776,135.68,135.64,7.37230943]
[1765208953643,7.84182776,135.68,135.61,7.37404144]
[1765208953644,7.16182776,135.65,135.61,7.37404144]
[1765208953968,7.16182776,135.64,135.61,7.37404144]
[1765208954173,7.84182776,135.64,135.61,7.37404144]
[1765208954467,7.84182776,135.63,135.6,7.37458252]
[1765208954965,7.16182776,135.61,135.58,7.3754974]
[1765208955353,7.84182776,135.61,135.58,7.3754974]
[1765208955668,7.84182776,135.61,135.57,8.0862204]
[1765208956048,7.84182776,135.61,135.57,7.3762204]
[1765208956253,7.16182776,135.61,135.57,8.0862204]
[1765208956474,7.84182776,135.61,135.57,8.0862204]
[1765208956982,0.68,135.61,135.57,8.0862204]
[1765208957339,7.16182776,135.59,135.56,7.37672551]
[1765208957545,15.24182776,135.59,135.55,23.68606963]
[1765208957760,15.92182776,135.59,135.55,24.39606963]
[1765208957961,7.16182776,135.57,135.54,7.37786012]
[1765208958152,7.84182776,135.58,135.55,7.37733408]
[1765208958458,8.08,135.59,135.55,8.08733408]
[1765208958649,15.97177268,135.56,135.51,0.81]
[1765208958855,7.16182776,135.55,135.52,7.3786095]
[1765208959056,7.16182776,135.54,135.51,7.47933637]
[1765208959257,7.16182776,135.54,135.51,8.18933637]
[1765208959574,7.84182776,135.55,135.51,8.18933637]
[1765208960963,7.16182776,135.55,135.51,7.47933637]
[1765208961159,14.53933333,135.55,135.51,7.47933637]
[1765208961463,15.97177268,135.52,135.51,0.1]
[1765208961669,24.05177268,135.52,135.51,0.1]
[1765208961855,24.75177268,135.52,135.51,0.1]
[1765208962779,32.13075733,135.52,135.51,0.1]
[1765208963163,8.80994492,135.52,135.51,0.1]
[1765208963375,0.7,135.54,135.51,0.1]
[1765208964974,7.86182776,135.54,135.51,0.1]
[1765208965280,15.97177268,135.52,135.51,0.1]
[1765208965465,24.05177268,135.52,135.51,0.1]
[1765208965649,24.75177268,135.52,135.51,0.1]
[1765208966866,32.13075733,135.52,135.51,0.1]
[1765208967390,16.308864,135.56,135.51,0.1]
[1765208967391,8.07752726,135.55,135.51,0.1]
[1765208967554,15.24182776,135.54,135.51,0.1]
[1765208967757,15.94182776,135.54,135.51,0.1]
[1765208968557,0.7,135.53,135.51,0.1]
[1765208968757,7.16182776,135.53,135.51,0.1]
[1765208969172,16.67177268,135.52,135.51,0.1]
[1765208970473,14.54027124,135.53,135.51,0.1]
[1765208970777,16.67177268,135.52,135.51,0.1]
[1765208971079,14.54027124,135.53,135.51,0.1]
[1765208971280,14.53973933,135.54,135.51,0.1]
[1765208971586,8.08,135.53,135.51,0.1]
[1765208972080,15.23973933,135.54,135.51,0.1]
[1765208972273,8.08,135.53,135.51,0.1]
[1765208973983,16.88717174,135.56,135.51,0.81]
[1765208974284,7.16182776,135.56,135.51,7.97182776]
[1765208974583,16.88994492,135.57,135.51,7.97182776]
[1765208974878,16.88994492,135.59,135.54,7.16182776]
[1765208975082,15.24182776,135.59,135.54,7.16182776]
[1765208975376,22.61591521,135.61,135.55,7.87182776]
[1765208975577,8.08,135.61,135.56,7.16182776]
[1765208975777,15.24182776,135.61,135.56,7.87182776]
[1765208975981,7.16182776,135.6,135.56,8.08650545]
[1765208976181,15.23645902,135.6,135.56,8.08650545]
[1765208976586,16.67177268,135.59,135.55,7.37727232]
[1765208976877,8.08,135.58,135.55,7.37727232]
[1765208978582,8.08,135.58,135.56,5.34319833]
[1765208978772,5.33319833,135.61,135.56,5.34319833]
[1765208978979,12.70732125,135.61,135.57,0.71]
[1765208979283,4.63319833,135.62,135.57,0.71]
[1765208979485,8.80994492,135.63,135.58,4.63319833]
[1765208979685,4.63319833,135.66,135.61,12.00728578]
[1765208979857,24.26147774,135.66,135.61,12.00728578]
[1765208980062,4.63319833,135.63,135.59,7.37476582]
[1765208980262,8.08,135.63,135.6,8.08460676]
[1765208980787,8.08,135.63,135.61,0.71]
[1765208981585,21.51467607,135.66,135.61,0.71]
[1765208981759,8.08,135.65,135.62,7.37354372]
[1765208982077,20.78523358,135.65,135.61,0.71]
[1765208982480,4.63319833,135.63,135.59,7.37498654]
[1765208982952,0.7,135.62,135.59,7.37498654]
[1765208983155,8.78,135.62,135.59,7.37498654]
[1765208983356,13.44314325,135.61,135.56,0.71]
[1765208983559,4.63319833,135.6,135.56,0.71]
[1765208983760,4.63319833,135.6,135.57,7.37586568]
[1765208984574,12.71319833,135.62,135.58,0.71]
[1765208984781,8.08,135.62,135.58,5.34319833]
[1765208985257,8.08,135.62,135.59,5.34319833]
[1765208985658,12.70583248,135.64,135.59,0.71]
[1765208985858,8.78,135.63,135.59,0.71]
[1765208986070,8.78,135.63,135.6,7.37463126]
[1765208986279,8.08,135.63,135.6,7.37463126]
[1765208986458,8.08,135.63,135.6,8.08463126]
[1765208987268,8.08,135.63,135.6,7.37463126]
[1765208987786,8.08,135.63,135.6,8.08463126]
[1765208987983,8.08,135.63,135.61,0.71]
[1765208988285,21.52314325,135.64,135.61,7.37408014]
[1765208989065,4.63319833,135.66,135.61,7.37408014]
[1765208989268,4.63319833,135.67,135.62,0.71]
[1765208989464,13.41319833,135.69,135.63,4.63319833]
[1765208989662,20.78306947,135.69,135.63,5.34319833]
[1765208989976,20.78306947,135.69,135.64,0.71]
[1765208990175,12.00419753,135.67,135.61,55.54136111]
[1765208990392,9.50994492,135.68,135.63,4.63319833]
[1765208990393,8.80994492,135.68,135.63,4.63319833]
[1765208990564,8.80994492,135.68,135.64,0.71]
[1765208990767,20.81346057,135.68,135.63,4.63319833]
[1765208990986,5.33319833,135.67,135.63,0.71]
[1765208991192,12.71319833,135.66,135.61,47.45136111]
[1765208991402,4.63319833,135.65,135.61,26.50929878]
[1765208991587,5.35319833,135.65,135.61,26.50929878]
[1765208991788,5.35319833,135.65,135.61,8.07408014]
[1765208992297,8.08,135.66,135.6,7.37424072]
[1765208992298,4.63319833,135.63,135.6,7.37424072]
[1765208992787,5.35319833,135.63,135.6,7.37424072]
[1765208993094,8.08,135.63,135.61,7.37395718]
[1765208993291,8.08,135.63,135.6,8.07440943]
[1765208995273,8.08,135.63,135.61,5.33319833]
[1765208995478,8.08,135.65,135.61,5.33319833]
[1765208995772,20.8044299,135.67,135.62,5.33319833]
[1765208996373,8.8,135.67,135.63,8.07300007]
[1765208997907,13.43319833,135.67,135.63,8.07300007]
[1765208998277,8.08,135.67,135.63,12.0061984]
[1765208998503,8.08,135.67,135.64,0.7]
[1765208998696,8.80994492,135.68,135.64,0.7]
[1765208998896,8.80994492,135.68,135.64,5.33319833]
[1765208999595,8.08,135.69,135.65,5.34319833]
[1765209000095,8.80994492,135.71,135.66,5.34319833]
[1765209000298,16.88994492,135.71,135.66,5.34319833]
[1765209000477,17.60994492,135.71,135.67,8.08082626]
[1765209000794,8.08,135.71,135.67,26.50789193]
[1765209001006,8.08,135.71,135.68,0.71]
[1765209001218,8.8,135.71,135.67,8.08082626]
[1765209001496,8.80994492,135.67,135.63,0.71]
[1765209001677,12.71319833,135.67,135.65,7.37155677]
[1765209001879,8.08,135.67,135.66,7.3713696]
[1765209002276,8.08,135.69,135.66,8.0813696]
[1765209002892,9.52994492,135.68,135.58,0.73757191]
[1765209003203,4.63319833,135.64,135.6,7.3745385]
[1765209003381,12.71319833,135.64,135.61,7.37408367]
[1765209003589,8.08,135.64,135.61,7.37408367]
[1765209003785,8.08,135.64,135.62,0.71]
[1765209004386,4.63319833,135.67,135.62,0.71]
[1765209004682,8.08,135.67,135.63,7.37300007]
[1765209004897,8.08,135.67,135.64,0.71]
[1765209005087,8.08,135.67,135.64,5.34319833]
[1765209005294,12.71319833,135.7,135.65,4.63319833]
[1765209005500,12.71319833,135.7,135.65,5.34319833]
[1765209005691,12.71319833,135.7,135.66,0.71]
[1765209005893,5.35319833,135.69,135.65,0.71]
[1765209006103,4.63319833,135.68,135.63,26.51550025]
[1765209006299,5.35319833,135.69,135.63,31.14869858]
[1765209006517,12.72294399,135.69,135.65,7.37191301]
[1765209007010,4.63319833,135.66,135.62,7.37335086]
[1765209007213,4.63319833,135.63,135.59,8.08]
[1765209007395,4.63319833,135.62,135.6,7.37460091]
[1765209007591,13.43319833,135.63,135.6,7.37460091]
[1765209008297,12.71319833,135.63,135.61,7.37390603]
[1765209008493,8.80994492,135.65,135.6,7.37463126]
[1765209008702,4.63319833,135.66,135.6,12.00782959]
[1765209008902,12.71319833,135.66,135.61,5.34319833]
[1765209009109,8.08,135.66,135.62,0.71]
[1765209009288,8.08,135.66,135.62,5.34319833]
[1765209009711,17.028864,135.69,135.63,5.34319833]
[1765209010015,4.63319833,135.66,135.61,17.018864]
[1765209010320,4.63319833,135.66,135.61,21.65206233]
[1765209010614,5.35319833,135.66,135.61,21.65206233]
[1765209010816,0.72,135.65,135.62,7.37354372]
[1765209011019,13.44314325,135.63,135.59,18.43722316]
[1765209011202,13.44314325,135.63,135.6,7.37429897]
[1765209011407,14.16314325,135.65,135.61,7.37404772]
[1765209011607,14.16314325,135.65,135.61,8.08404772]
[1765209011822,4.63319833,135.65,135.61,25.80926636]
[1765209012119,4.63319833,135.65,135.62,0.71]
[1765209012418,8.08,135.66,135.62,0.71]
[1765209012813,5.35319833,135.67,135.63,7.37300007]
[1765209013019,13.43319833,135.67,135.63,7.37300007]
[1765209014390,12.72404818,135.67,135.63,7.37300007]
[1765209014609,8.8,135.67,135.63,8.08300007]
[1765209014915,4.63319833,135.65,135.61,7.37364084]
[1765209015325,5.35319833,135.65,135.61,8.08364084]
[1765209015820,0.72,135.65,135.61,26.51885948]
[1765209016119,8.80994492,135.66,135.62,0.71]
[1765209016293,9.52994492,135.66,135.62,0.71]
[1765209016707,0.72,135.66,135.62,0.71]
[1765209016910,12.71319833,135.67,135.63,7.37300007]
[1765209017105,20.80410937,135.67,135.63,7.37300007]
[1765209017306,8.08,135.67,135.64,0.71]
[1765209017897,8.08,135.67,135.63,30.43869858]
[1765209018212,14.16314325,135.66,135.62,7.37342563]
[1765209018402,4.63319833,135.64,135.62,7.37342563]
[1765209018606,12.71319833,135.64,135.62,7.37342563]
[1765209018915,13.43319833,135.64,135.62,7.37342563]
[1765209019116,13.43319833,135.64,135.6,7.37463126]
[1765209019415,8.08,135.64,135.6,26.52120943]
[1765209019618,8.08,135.64,135.6,7.37463126]
[1765209019619,5.35319833,135.63,135.6,7.37463126]
[1765209020119,5.35319833,135.63,135.59,7.37506738]
[1765209020330,5.35319833,135.63,135.59,8.08506738]
[1765209020492,20.08566802,135.64,135.59,7.37506738]
[1765209020799,8.08,135.64,135.6,0.71]
[1765209021315,13.43319833,135.64,135.6,8.08438922]
[1765209021818,0.72,135.63,135.6,8.08438922]
[1765209022023,14.16314325,135.63,135.59,7.37500746]
[1765209022516,5.35319833,135.62,135.59,7.37500746]
[1765209022942,14.16314325,135.63,135.6,7.37461146]
[1765209023115,0.72,135.63,135.6,7.37461146]
[1765209023420,12.71319833,135.64,135.6,7.37461146]